bitfinex-derivatives/quotes_BTCF0:USTF0_20250429
["timestamp","ask_amount","ask_price","bid_price","bid_amount"]
[1745930539369,0.2417242,95061.0,95060.0,0.15]
[1745930539569,0.2417242,95061.0,95060.0,0.3603197]
[1745930539869,0.2417242,95061.0,95060.0,0.4257997]
[1745930541266,0.2417242,95061.0,95060.0,0.21548]
[1745930541574,0.2417242,95061.0,95060.0,0.31629915]
[1745930541775,0.2417242,95061.0,95060.0,0.25081915]
[1745930541976,0.2417242,95061.0,95060.0,0.31629915]
[1745930547681,0.0314,95061.0,95060.0,0.31629915]
[1745930547884,0.001,95061.0,95060.0,0.64629915]
[1745930548080,0.0311,95064.0,95063.0,0.2103131]
[1745930548283,0.623684,95068.0,95067.0,0.2103043]
[1745930548489,0.623684,95068.0,95067.0,0.6103043]
[1745930548890,0.623684,95068.0,95067.0,0.6754643]
[1745930549292,0.623684,95068.0,95067.0,0.7954643]
[1745930550590,0.623684,95068.0,95067.0,0.4354643]
[1745930550787,0.262884,95068.0,95067.0,0.4354643]
[1745930552587,0.292884,95068.0,95067.0,0.4354643]
[1745930553592,0.292884,95068.0,95067.0,0.16]
[1745930554180,0.292884,95068.0,95067.0,0.04]
[1745930556395,0.292884,95068.0,95067.0,0.2503043]
[1745930556595,0.292884,95068.0,95067.0,0.04]
[1745930556894,0.292884,95068.0,95067.0,0.2503043]
[1745930557097,0.292884,95068.0,95067.0,0.04]
[1745930558793,0.292884,95068.0,95067.0,0.2503043]
[1745930559487,0.292884,95068.0,95067.0,0.04]
[1745930561486,0.42641102,95068.0,95067.0,0.04]
[1745930562194,0.42641102,95068.0,95067.0,0.16]
[1745930562990,0.42641102,95068.0,95067.0,0.16]
[1745930563184,0.42641102,95068.0,95067.0,0.04]
[1745930565094,0.292884,95068.0,95067.0,0.04]
[1745930566285,0.292884,95068.0,95065.0,0.0311]
[1745930566286,0.2103065,95066.0,95065.0,0.0311]
[1745930566490,0.2103065,95066.0,95065.0,0.2614087]
[1745930567101,0.2103065,95066.0,95065.0,0.3814087]
[1745930568602,0.2103065,95066.0,95065.0,0.1711]
[1745930568902,0.31730658,95066.0,95065.0,0.1711]
[1745930570001,0.31730658,95066.0,95065.0,0.3814087]
[1745930570203,0.31730658,95066.0,95065.0,0.3614087]
[1745930570501,0.31730658,95066.0,95065.0,0.3814087]
[1745930571304,0.31730658,95066.0,95065.0,0.1711]
[1745930571498,0.2103065,95066.0,95065.0,0.1711]
[1745930572295,0.3066065,95066.0,95065.0,0.1711]
[1745930573503,0.3066065,95066.0,95065.0,0.3814087]
[1745930574205,0.3066065,95066.0,95065.0,0.3614087]
[1745930574396,0.3066065,95066.0,95065.0,0.1611]
[1745930574702,0.3066065,95066.0,95065.0,0.3714087]
[1745930574891,0.3066065,95066.0,95065.0,0.1611]
[1745930575504,0.3066065,95066.0,95065.0,0.3714087]
[1745930576299,0.2752065,95066.0,95065.0,0.3714087]
[1745930576805,0.2103065,95066.0,95065.0,0.3714087]
[1745930592218,0.2103065,95066.0,95065.0,0.4365687]
[1745930592812,0.2103065,95066.0,95065.0,0.22626]
[1745930593212,0.5711065,95066.0,95065.0,0.13]
[1745930593416,0.6350065,95066.0,95065.0,0.13]
[1745930594305,0.2103087,95065.0,95064.0,0.0316]
[1745930594510,0.2103087,95065.0,95064.0,0.0516]
[1745930594713,0.2760087,95065.0,95064.0,0.0516]
[1745930595109,0.2760087,95065.0,95064.0,0.1716]
[1745930596205,0.2760087,95065.0,95064.0,0.0516]
[1745930597006,0.2760087,95065.0,95064.0,0.02]
[1745930597212,0.2760087,95065.0,95064.0,0.14]
[1745930597406,0.3812007,95065.0,95064.0,0.14]
[1745930598005,0.39173403,95065.0,95064.0,0.14]
[1745930598209,0.2103153,95062.0,95061.0,0.0331]
[1745930598407,0.2103153,95062.0,95061.0,0.0531]
[1745930599125,0.2103153,95062.0,95061.0,0.1731]
[1745930599615,0.2103153,95062.0,95061.0,0.1741]
[1745930601217,0.2103153,95062.0,95061.0,0.1541]
[1745930601418,0.2419153,95062.0,95061.0,0.1741]
[1745930602211,0.2419153,95062.0,95061.0,0.2042]
[1745930605224,0.2419153,95062.0,95061.0,0.1842]
[1745930605424,0.2419153,95062.0,95061.0,0.2042]
[1745930606222,0.2103153,95062.0,95061.0,0.4145175]
[1745930606622,0.31720989,95062.0,95061.0,0.4145175]
[1745930608630,0.31720989,95062.0,95061.0,0.7645175]
[1745930608922,0.10689459,95062.0,95061.0,0.7645175]
[1745930609131,0.31720989,95062.0,95061.0,0.7645175]
[1745930609728,0.2103153,95062.0,95061.0,0.7645175]
[1745930609931,0.2103153,95062.0,95061.0,0.2842]
[1745930610229,0.2103153,95062.0,95061.0,0.4945175]
[1745930611127,0.2103153,95062.0,95061.0,0.2842]
[1745930611429,0.2103153,95062.0,95061.0,0.4945175]
[1745930619542,0.10692188,95067.0,95061.0,0.5542]
[1745930619742,0.31722728,95067.0,95066.0,0.5711065]
[1745930619942,0.31722728,95067.0,95066.0,0.6111065]
[1745930620142,0.31722728,95067.0,95066.0,0.7311065]
[1745930620647,0.10692188,95067.0,95066.0,0.7955065]
[1745930620944,0.31722618,95067.0,95066.0,0.7955065]
[1745930621545,0.31722618,95067.0,95066.0,0.80611327]
[1745930623045,0.31722618,95067.0,95066.0,0.7955065]
[1745930623448,0.2103043,95067.0,95066.0,0.7955065]
[1745930624040,0.2103043,95067.0,95066.0,0.80575391]
[1745930626548,0.2628768,95069.0,95068.0,0.210302]
[1745930626743,0.2628768,95069.0,95068.0,0.250302]
[1745930626946,0.10692188,95073.0,95072.0,0.2102932]
[1745930627147,0.31721288,95073.0,95072.0,0.3602932]
[1745930627336,0.10692188,95073.0,95072.0,0.3602932]
[1745930627748,0.10692188,95073.0,95072.0,0.4234932]
[1745930628443,0.10792188,95073.0,95072.0,0.4234932]
[1745930628745,0.31821288,95073.0,95072.0,0.4234932]
[1745930629251,0.211291,95073.0,95072.0,0.4234932]
[1745930630150,0.212291,95073.0,95072.0,0.4234932]
[1745930633843,0.002,95073.0,95072.0,0.4886132]
[1745930634552,0.212291,95073.0,95072.0,0.4886132]
[1745930634954,0.002,95073.0,95072.0,0.4886132]
[1745930635149,0.212291,95073.0,95072.0,0.4886132]
[1745930635756,0.002,95073.0,95072.0,0.4886132]
[1745930636058,0.212291,95073.0,95072.0,0.4886132]
[1745930636349,0.211291,95073.0,95072.0,0.4886132]
[1745930636556,0.212291,95073.0,95072.0,0.4886132]
[1745930636854,0.211291,95073.0,95072.0,0.4916132]
[1745930637357,0.210291,95073.0,95072.0,0.4916132]
[1745930637557,0.210291,95073.0,95072.0,0.4946132]
[1745930639444,0.2112848,95076.0,95075.0,0.2102866]
[1745930639652,0.001,95076.0,95075.0,0.2402866]
[1745930639852,0.001,95076.0,95075.0,0.3027866]
[1745930640159,0.001,95076.0,95075.0,0.4227866]
[1745930640551,0.001,95076.0,95075.0,0.4267866]
[1745930641159,0.0015,95080.0,95079.0,0.2102777]
[1745930641366,0.10692188,95087.0,95086.0,0.2102622]
[1745930641554,0.0525612,95094.0,95087.0,0.0525647]
[1745930641555,0.2102482,95093.0,95087.0,0.0525647]
[1745930641757,0.2102468,95093.0,95092.0,0.3608]
[1745930641946,0.2102468,95093.0,95092.0,0.3808]
[1745930642148,0.2102468,95093.0,95092.0,0.5008]
[1745930642548,0.2420468,95093.0,95092.0,0.14]
[1745930642758,0.2728468,95093.0,95092.0,0.14]
[1745930643148,0.6336468,95093.0,95092.0,0.14]
[1745930644157,0.6346468,95093.0,95092.0,0.14]
[1745930644357,0.6356468,95093.0,95092.0,0.14]
[1745930649146,0.6356468,95093.0,95092.0,0.350249]
[1745930649551,0.6356468,95093.0,95092.0,0.330249]
[1745930650057,0.6356468,95093.0,95092.0,0.13067614]
[1745930650665,0.2748468,95093.0,95092.0,0.35092514]
[1745930650959,0.2122468,95093.0,95092.0,0.35092514]
[1745930651154,0.13352702,95095.0,95094.0,0.2102445]
[1745930651360,0.34376932,95095.0,95094.0,0.6202445]
[1745930651550,0.34376932,95095.0,95094.0,0.2502445]
[1745930651752,0.2102423,95095.0,95094.0,0.2502445]
[1745930651965,0.2102423,95095.0,95094.0,0.2813445]
[1745930652153,0.2102423,95095.0,95094.0,0.4315445]
[1745930652955,0.2102423,95095.0,95094.0,0.4325445]
[1745930654066,0.2102423,95095.0,95094.0,0.4335445]
[1745930654370,0.2102423,95095.0,95094.0,0.4986245]
[1745930655865,0.2102423,95095.0,95094.0,0.8594245]
[1745930661168,0.2102423,95095.0,95094.0,0.7943445]
[1745930662769,0.2102423,95095.0,95094.0,0.4335445]
[1745930662967,0.2102423,95095.0,95094.0,0.7943445]
[1745930673085,0.2102423,95095.0,95094.0,0.8593445]
[1745930674581,0.2102423,95095.0,95094.0,0.7943445]
[1745930674782,0.2102423,95095.0,95094.0,0.8593445]
[1745930676179,0.2102423,95095.0,95094.0,0.4985445]
[1745930676882,0.2422423,95095.0,95094.0,0.4985445]
[1745930684687,0.2422423,95095.0,95094.0,0.34105255]
[1745930684888,0.2422423,95095.0,95094.0,0.38105255]
[1745930685191,0.2422423,95095.0,95094.0,0.31605255]
[1745930685393,0.2422423,95095.0,95094.0,0.38105255]
[1745930688087,0.2422423,95095.0,95094.0,0.41145255]
[1745930689789,0.2422423,95095.0,95094.0,0.44215255]
[1745930695801,0.2422423,95095.0,95094.0,0.37715255]
[1745930697815,0.2746423,95095.0,95094.0,0.37715255]
[1745930700320,0.0525515,95112.0,95105.0,0.2102202]
[1745930700518,0.211218,95106.0,95105.0,0.2502202]
[1745930701115,0.243918,95106.0,95105.0,0.37801542]
[1745930701310,0.243918,95106.0,95105.0,0.41101542]
[1745930701511,0.275318,95106.0,95105.0,0.41101542]
[1745930701810,0.275318,95106.0,95105.0,0.44391542]
[1745930704617,0.242618,95106.0,95105.0,0.40391542]
[1745930705424,0.242618,95106.0,95105.0,0.44391542]
[1745930716517,0.242618,95106.0,95105.0,0.20079522]
[1745930716721,0.242618,95106.0,95105.0,0.12779522]
[1745930717120,0.242618,95106.0,95105.0,0.00779522]
[1745930717331,0.2102357,95098.0,95097.0,0.2102377]
[1745930717527,0.2102357,95098.0,95097.0,0.2402377]
[1745930718322,0.2738357,95098.0,95097.0,0.3602377]
[1745930718631,0.2738357,95098.0,95097.0,0.15]
[1745930718830,0.2738357,95098.0,95097.0,0.152]
[1745930719131,0.2738357,95098.0,95097.0,0.3622379]
[1745930720123,0.2738357,95098.0,95097.0,0.2422379]
[1745930721231,0.2738357,95098.0,95097.0,0.3622379]
[1745930721632,0.2738357,95098.0,95097.0,0.3942379]
[1745930721932,0.2738357,95098.0,95097.0,0.4580379]
[1745930722332,0.2738357,95098.0,95097.0,0.4260379]
[1745930727036,0.0525583,95100.0,95097.0,0.4260379]
[1745930727037,0.2102317,95100.0,95099.0,0.2102313]
[1745930727338,0.2102357,95098.0,95097.0,0.3960357]
[1745930727537,0.2102357,95098.0,95097.0,0.26891963]
[1745930728036,0.2405357,95098.0,95097.0,0.2527]
[1745930728240,0.2405357,95098.0,95097.0,0.1317]
[1745930729137,0.2405357,95098.0,95097.0,0.2527]
[1745930731233,0.2405357,95098.0,95097.0,0.1327]
[1745930732641,0.2405357,95098.0,95097.0,0.3429379]
[1745930735349,0.2405357,95098.0,95097.0,0.1327]
[1745930737646,0.2405357,95098.0,95097.0,0.3429379]
[1745930739149,0.2405357,95098.0,95097.0,0.4629379]
[1745930739448,0.2405357,95098.0,95097.0,0.2527]
[1745930742137,0.2405357,95098.0,95097.0,0.1327]
[1745930743243,0.2405357,95098.0,95097.0,0.2527]
[1745930743851,0.2405357,95098.0,95097.0,0.1527]
[1745930745248,0.2102357,95098.0,95097.0,0.3629379]
[1745930745445,0.2102357,95098.0,95097.0,0.3957379]
[1745930745752,0.2102357,95098.0,95097.0,0.4057379]
[1745930745948,0.052556,95104.0,95101.0,0.2627814]
[1745930746153,0.2102269,95102.0,95101.0,0.2827814]
[1745930747146,0.2102269,95102.0,95101.0,0.4027814]
[1745930747656,0.2102269,95102.0,95101.0,0.4047814]
[1745930747949,0.2102269,95102.0,95101.0,0.3522247]
[1745930749151,0.2627801,95104.0,95103.0,0.2102247]
[1745930749343,0.2627801,95104.0,95103.0,0.2502247]
[1745930750256,0.2627801,95104.0,95103.0,0.3702247]
[1745930752360,0.211218,95106.0,95105.0,0.2102202]
[1745930752548,0.211218,95106.0,95105.0,0.2302202]
[1745930753157,0.211218,95106.0,95105.0,0.3502202]
[1745930753458,0.211218,95106.0,95105.0,0.35795899]
[1745930756661,0.211218,95106.0,95105.0,0.38905899]
[1745930758965,0.211218,95106.0,95105.0,0.17883879]
[1745930759262,0.211218,95106.0,95105.0,0.05883879]
[1745930759765,0.273618,95106.0,95105.0,0.02773879]
[1745930763560,0.273618,95106.0,95105.0,0.00773879]
[1745930763868,0.2102202,95105.0,95104.0,0.2427224]
[1745930764167,0.2102202,95105.0,95104.0,0.2527224]
[1745930764466,0.2710202,95105.0,95104.0,0.2527224]
[1745930765460,0.2710202,95105.0,95104.0,0.0425]
[1745930768369,0.2710202,95105.0,95104.0,0.2527224]
[1745930769265,0.2710202,95105.0,95104.0,0.3727224]
[1745930773174,0.2710202,95105.0,95104.0,0.2527224]
[1745930773575,0.2710202,95105.0,95104.0,0.0425]
[1745930779862,0.2710202,95105.0,95104.0,0.01]
[1745930783493,0.2102269,95102.0,95101.0,0.0623]
[1745930783685,0.5710269,95102.0,95101.0,0.0623]
[1745930784189,0.5710269,95102.0,95101.0,0.1823]
[1745930784387,0.6330269,95102.0,95101.0,0.1823]
[1745930785882,0.6330269,95102.0,95101.0,0.1833]
[1745930786285,0.6330269,95102.0,95101.0,0.1843]
[1745930786782,0.6330269,95102.0,95101.0,0.0173845]
[1745930795381,0.6330269,95102.0,95101.0,0.0483845]
[1745930796095,0.2102269,95102.0,95101.0,0.2786136]
[1745930796502,0.2102269,95102.0,95101.0,0.0683845]
[1745930809195,0.2102269,95102.0,95101.0,0.053]
[1745930810109,0.2102269,95102.0,95101.0,0.173]
[1745930811114,0.2102269,95102.0,95101.0,0.053]
[1745930811298,0.2102269,95102.0,95101.0,0.002]
[1745930812299,0.0525603,95096.0,95088.0,0.01049299]
[1745930812501,0.5710534,95090.0,95089.0,0.04]
[1745930813405,0.6348534,95090.0,95089.0,0.04]
[1745930814906,0.6348534,95090.0,95089.0,0.041]
[1745930815303,0.6348534,95090.0,95089.0,0.042]
[1745930815505,0.6348534,95090.0,95089.0,0.002]
[1745930815705,0.6348534,95090.0,95089.0,0.004]
[1745930815906,0.6348534,95090.0,95089.0,0.003]
[1745930818107,0.6348534,95090.0,95089.0,0.004]
[1745930819211,0.6348534,95090.0,95089.0,0.003]
[1745930820708,0.6348534,95090.0,95089.0,0.004]
[1745930822404,0.2102556,95089.0,95088.0,0.032]
[1745930822911,0.2739556,95089.0,95088.0,0.032]
[1745930823106,0.2102622,95086.0,95085.0,0.00157749]
[1745930823312,0.2102622,95086.0,95085.0,0.02157749]
[1745930824014,0.2731622,95086.0,95085.0,0.02157749]
[1745930824713,0.2731622,95086.0,95085.0,0.00157749]
[1745930825411,0.2731622,95086.0,95085.0,0.00557749]
[1745930830714,0.168068,95086.0,95045.0,0.52258773]
[1745930831015,0.5710976,95070.0,95069.0,0.0303]
[1745930831625,0.2103109,95064.0,95063.0,0.0315]
[1745930831815,0.2103109,95064.0,95063.0,0.0415]
[1745930832922,0.2409109,95064.0,95063.0,0.0742]
[1745930833222,0.2409109,95064.0,95063.0,0.0792]
[1745930834717,0.2409109,95064.0,95063.0,0.0782]
[1745930834925,0.2409109,95064.0,95063.0,0.0672]
[1745930835925,0.6017109,95064.0,95063.0,0.0672]
[1745930838820,0.6017109,95064.0,95063.0,0.0357]
[1745930843421,0.6017109,95064.0,95063.0,0.003]
[1745930844419,0.2103419,95050.0,95045.0,0.00105213]
[1745930844615,0.5711419,95050.0,95045.0,0.00105213]
[1745930845816,0.5711419,95050.0,95049.0,0.00257795]
[1745930846912,0.6763499,95050.0,95049.0,0.00257795]
[1745930847218,0.2103507,95046.0,95045.0,0.00105213]
[1745930847521,0.2103839,95031.0,95030.0,0.033]
[1745930847719,0.2103906,95028.0,95026.0,0.065]
[1745930847924,0.2103906,95028.0,95027.0,0.02157849]
[1745930848311,0.2103906,95028.0,95027.0,0.05227849]
[1745930848717,0.2103906,95028.0,95027.0,0.08527849]
[1745930849117,0.2103906,95028.0,95027.0,0.20527849]
[1745930849825,0.2103906,95028.0,95027.0,0.41567129]
[1745930850523,0.2123906,95028.0,95027.0,0.42767129]
[1745930850820,0.2123906,95028.0,95027.0,0.43571014]
[1745930851827,0.2123906,95028.0,95027.0,0.22531734]
[1745930853329,0.2123906,95028.0,95027.0,0.43571014]
[1745930855127,0.2431906,95028.0,95027.0,0.07231734]
[1745930855635,0.2431906,95028.0,95027.0,0.05231734]
[1745930856023,0.2431906,95028.0,95027.0,0.08261734]
[1745930857232,0.2123906,95028.0,95027.0,0.43301014]
[1745930857733,0.2113906,95028.0,95027.0,0.42801014]
[1745930858031,0.2103906,95028.0,95027.0,0.42501014]
[1745930858428,0.2427906,95028.0,95027.0,0.14557849]
[1745930858726,0.2734906,95028.0,95027.0,0.12757849]
[1745930859132,0.2734906,95028.0,95027.0,0.00457849]
[1745930859320,0.2734906,95028.0,95027.0,0.00757849]
[1745930860123,0.2104171,95016.0,95015.0,0.00105246]
[1745930860331,0.2104171,95016.0,95015.0,0.02105246]
[1745930860632,0.2104171,95016.0,95015.0,0.23147136]
[1745930860929,0.2104171,95016.0,95015.0,0.29387136]
[1745930861233,0.2415171,95016.0,95015.0,0.29387136]
[1745930861921,0.2415171,95016.0,95015.0,0.30087136]
[1745930862328,0.2415171,95016.0,95015.0,0.02805246]
[1745930862527,0.2717171,95016.0,95015.0,0.00805246]
[1745930863331,0.2717171,95016.0,95015.0,0.12805246]
[1745930864233,0.2717171,95016.0,95015.0,0.00805246]
[1745930878042,0.2415171,95016.0,95015.0,0.21847186]
[1745930878240,0.2415171,95016.0,95015.0,0.40077186]
[1745930882149,0.2415171,95016.0,95015.0,0.19035246]
[1745930883334,0.2415171,95016.0,95015.0,0.22155246]
[1745930883540,0.2415171,95016.0,95015.0,0.15925246]
[1745930884156,0.2733171,95016.0,95015.0,0.12805246]
[1745930885251,0.2733171,95016.0,95015.0,0.00805246]
[1745930885755,0.6341171,95016.0,95015.0,0.00805246]
[1745930885953,0.2104482,95002.0,95001.0,0.2734498]
[1745930886149,0.2104482,95002.0,95001.0,0.4134498]
[1745930886655,0.2104482,95002.0,95001.0,0.4459498]
[1745930887342,0.2114482,95002.0,95001.0,0.4509498]
[1745930887937,0.2124482,95002.0,95001.0,0.4549498]
[1745930888141,0.2124482,95002.0,95001.0,0.46525543]
[1745930888342,0.2124482,95002.0,95001.0,0.44525543]
[1745930888849,0.2124482,95002.0,95001.0,0.36975543]
[1745930889349,0.2124482,95002.0,95001.0,0.06959839]
[1745930889550,0.2124482,95002.0,95001.0,0.28004879]
[1745930889754,0.2124482,95002.0,95001.0,0.08014774]
[1745930889955,0.2124482,95002.0,95001.0,0.06959839]
[1745930890160,0.2124482,95002.0,95001.0,0.03679839]
[1745930890354,0.2124482,95002.0,95001.0,0.06779839]
[1745930891250,0.2124482,95002.0,95001.0,0.009]
[1745930894158,0.2124482,95002.0,95001.0,0.041]
[1745930894956,0.210457,94998.0,94997.0,0.02883547]
[1745930896763,0.210457,94998.0,94997.0,0.23929467]
[1745930897156,0.211457,94998.0,94997.0,0.36329467]
[1745930897357,0.212457,94998.0,94997.0,0.38729467]
[1745930897561,0.212457,94998.0,94997.0,0.39523538]
[1745930898267,0.002,94998.0,94997.0,0.86809938]
[1745930898564,0.263041,95014.0,95013.0,0.2104216]
[1745930898862,0.3156486,95014.0,95013.0,0.2504216]
[1745930899359,0.3156486,95014.0,95013.0,0.40790782]
[1745930899554,0.3156486,95014.0,95013.0,0.19748622]
[1745930899754,0.3476486,95014.0,95013.0,0.16]
[1745930900255,0.3476486,95014.0,95013.0,0.161]
[1745930900558,0.3476486,95014.0,95013.0,0.162]
[1745930902857,0.3476486,95014.0,95013.0,0.3724238]
[1745930903159,0.3476486,95014.0,95013.0,0.3992238]
[1745930903760,0.3476486,95014.0,95013.0,0.162]
[1745930904466,0.3476486,95014.0,95013.0,0.3724238]
[1745930905758,0.3476486,95014.0,95013.0,0.162]
[1745930905959,0.3776486,95014.0,95013.0,0.162]
[1745930907558,0.3776486,95014.0,95013.0,0.3724238]
[1745930907760,0.3476486,95014.0,95013.0,0.3724238]
[1745930910065,0.3156486,95014.0,95013.0,0.3724238]
[1745930912758,0.3156486,95014.0,95013.0,0.162]
[1745930912968,0.3484486,95014.0,95013.0,0.162]
[1745930914065,0.3484486,95014.0,95013.0,0.042]
[1745930914371,0.3484486,95014.0,95013.0,0.002]
[1745930914669,0.263054,95006.0,95005.0,0.2104402]
[1745930914865,0.623854,95006.0,95005.0,0.24087602]
[1745930915061,0.686054,95006.0,95005.0,0.36087602]
[1745930915876,0.424,95006.0,94992.0,0.00157907]
[1745930916176,0.2104836,94986.0,94985.0,0.01047142]
[1745930916363,0.2104836,94986.0,94985.0,0.02047142]
[1745930916563,0.2104836,94986.0,94985.0,0.00263203]
[1745930916773,0.2105035,94977.0,94975.0,0.06492]
[1745930916969,0.2105213,94969.0,94968.0,0.0631]
[1745930917269,0.5713213,94969.0,94968.0,0.0477186]
[1745930917870,0.6361213,94969.0,94968.0,0.0477186]
[1745930918374,0.6361213,94969.0,94968.0,0.02]
[1745930919270,0.6371213,94969.0,94968.0,0.022]
[1745930919473,0.6381213,94969.0,94968.0,0.028]
[1745930920872,0.6381213,94969.0,94968.0,0.008]
[1745930922576,0.6381213,94969.0,94968.0,0.006]
[1745930922974,0.2105257,94967.0,94966.0,0.00792939]
[1745930923172,0.2105434,94959.0,94958.0,0.0313]
[1745930923471,0.2105434,94959.0,94958.0,0.2818457]
[1745930924182,0.2105434,94959.0,94958.0,0.4286457]
[1745930924371,0.2437434,94959.0,94958.0,0.4286457]
[1745930925381,0.2447434,94959.0,94958.0,0.4296457]
[1745930925984,0.2457434,94959.0,94958.0,0.4316457]
[1745930926779,0.2457434,94959.0,94958.0,0.43964088]
[1745930935084,0.2457434,94959.0,94958.0,0.22909518]
[1745930935287,0.2457434,94959.0,94958.0,0.17099518]
[1745930935489,0.6065434,94959.0,94958.0,0.17099518]
[1745930939390,0.2457434,94959.0,94958.0,0.17099518]
[1745930939583,0.2457434,94959.0,94958.0,0.38154088]
[1745930939778,0.2457434,94959.0,94958.0,0.80134088]
[1745930940592,0.2457434,94959.0,94958.0,0.44054088]
[1745930940983,0.2457434,94959.0,94958.0,0.42054088]
[1745930944701,0.2457434,94959.0,94958.0,0.20999518]
[1745930945000,0.2457434,94959.0,94958.0,0.42054088]
[1745930946499,0.2457434,94959.0,94958.0,0.20999518]
[1745930949201,0.2457434,94959.0,94958.0,0.42054088]
[1745930949896,0.2457434,94959.0,94958.0,0.18319518]
[1745930952093,0.2457434,94959.0,94958.0,0.15099518]
[1745930952289,0.2457434,94959.0,94958.0,0.03099518]
[1745930953201,0.2457434,94959.0,94958.0,0.15099518]
[1745930954202,0.2457434,94959.0,94958.0,0.03099518]
[1745930954391,0.2759434,94959.0,94958.0,0.03099518]
[1745930957005,0.2759434,94959.0,94958.0,0.02099518]
[1745930958802,0.2759434,94959.0,94958.0,0.01099518]
[1745930959302,0.1854,94959.0,94957.0,0.00157965]
[1745930959504,0.2105767,94944.0,94941.0,0.6032812]
[1745930959699,0.2105767,94944.0,94943.0,0.10492]
[1745930960004,0.2105767,94944.0,94943.0,0.2505789]
[1745930960595,0.2105767,94944.0,94943.0,0.2515789]
[1745930960596,0.2763767,94944.0,94943.0,0.2515789]
[1745930961097,0.2763767,94944.0,94943.0,0.041]
[1745930961300,0.2773767,94944.0,94943.0,0.043]
[1745930961605,0.2773767,94944.0,94943.0,0.05085065]
[1745930964302,0.2773767,94944.0,94943.0,0.26142955]
[1745930972399,0.2773767,94944.0,94943.0,0.05085065]
[1745930972600,0.2773767,94944.0,94943.0,0.26142955]
[1745930972807,0.2773767,94944.0,94943.0,0.05085065]
[1745930973107,0.2773767,94944.0,94943.0,0.26142955]
[1745930975412,0.2773767,94944.0,94943.0,0.23142955]
[1745930977906,0.035,94944.0,94943.0,0.22142955]
[1745930978107,0.2455767,94944.0,94943.0,0.73142955]
[1745930978305,0.2455767,94944.0,94943.0,0.35142955]
[1745930978512,0.2455767,94944.0,94943.0,0.40952955]
[1745930978903,0.035,94944.0,94943.0,0.40952955]
[1745930979105,0.2455767,94944.0,94943.0,0.40952955]
[1745930979508,0.035,94944.0,94943.0,0.40952955]
[1745930980403,0.2455767,94944.0,94943.0,0.40952955]
[1745930982914,0.2455767,94944.0,94943.0,0.38272955]
[1745930983305,0.2455767,94944.0,94943.0,0.40952955]
[1745930987415,0.2455767,94944.0,94943.0,0.39952955]
[1745930987724,0.2455767,94944.0,94943.0,0.41952955]
[1745930989236,0.002,94944.0,94943.0,0.74952955]
[1745930989419,0.31714567,94959.0,94958.0,0.2105457]
[1745930989624,0.2105449,94959.0,94958.0,0.2305457]
[1745930990118,0.2105449,94959.0,94958.0,0.3820457]
[1745930990924,0.2421449,94959.0,94958.0,0.3820457]
[1745930991128,0.2431449,94959.0,94958.0,0.2620457]
[1745930991322,0.2431449,94959.0,94958.0,0.2888457]
[1745930991624,0.2441449,94959.0,94958.0,0.2898457]
[1745930992125,0.2441449,94959.0,94958.0,0.4098457]
[1745930992422,0.002,94959.0,94958.0,0.7198457]
[1745930992830,0.2125434,94959.0,94958.0,0.7198457]
[1745930993121,0.2125434,94959.0,94958.0,0.4298457]
[1745930993321,0.2439434,94959.0,94958.0,0.4298457]
[1745930997635,0.2439434,94959.0,94958.0,0.2193]
[1745930997931,0.2439434,94959.0,94958.0,0.4298457]
[1745931000037,0.2439434,94959.0,94958.0,0.3715457]
[1745931000338,0.2439434,94959.0,94958.0,0.2515457]
[1745931000528,0.2439434,94959.0,94958.0,0.041]
[1745931000730,0.3085434,94959.0,94958.0,0.041]
[1745931004639,0.2632202,94946.0,94945.0,0.2105738]
[1745931004827,0.2632202,94946.0,94945.0,0.2505738]
[1745931005032,0.3601202,94946.0,94945.0,0.04]
[1745931005233,0.3601202,94946.0,94945.0,0.2505745]
[1745931005746,0.3621202,94946.0,94945.0,0.2525745]
[1745931007548,0.3621202,94946.0,94945.0,0.042]
[1745931009146,0.3621202,94946.0,94945.0,0.2525745]
[1745931009335,0.3621202,94946.0,94945.0,0.2125745]
[1745931009530,0.3621202,94946.0,94945.0,0.002]
[1745931010449,0.3621202,94946.0,94945.0,0.2125745]
[1745931010749,0.3621202,94946.0,94945.0,0.2225745]
[1745931012051,0.3621202,94946.0,94945.0,0.012]
[1745931013255,0.3621202,94946.0,94945.0,0.132]
[1745931013455,0.3621202,94946.0,94945.0,0.3425745]
[1745931014849,0.3621202,94946.0,94945.0,0.3525745]
[1745931015449,0.3621202,94946.0,94945.0,0.142]
[1745931017454,0.3621202,94946.0,94945.0,0.3525745]
[1745931021058,0.3621202,94946.0,94945.0,0.142]
[1745931023458,0.3621202,94946.0,94945.0,0.3525745]
[1745931028861,0.3621202,94946.0,94945.0,0.142]
[1745931029062,0.3621202,94946.0,94941.0,0.20162184]
[1745931029063,0.2105811,94942.0,94941.0,0.20162184]
[1745931029362,0.2105811,94942.0,94941.0,0.24162184]
[1745931029960,0.2105811,94942.0,94941.0,0.04]
[1745931030167,0.2762811,94942.0,94941.0,0.16]
[1745931030367,0.2772811,94942.0,94941.0,0.161]
[1745931030569,0.2772811,94942.0,94941.0,0.141]
[1745931031069,0.2772811,94942.0,94941.0,0.14909782]
[1745931031365,0.2772811,94942.0,94941.0,0.12909782]
[1745931031569,0.2772811,94942.0,94941.0,0.14909782]
[1745931032172,0.2106144,94928.0,94927.0,0.2106144]
[1745931032366,0.2106144,94928.0,94927.0,0.1]
[1745931032764,0.2754144,94928.0,94927.0,0.3106144]
[1745931033161,0.2754144,94928.0,94927.0,0.22]
[1745931033368,0.2754144,94928.0,94927.0,0.23036179]
[1745931033566,0.2764144,94928.0,94927.0,0.23036179]
[1745931034361,0.2774144,94928.0,94927.0,0.23813764]
[1745931034770,0.2774144,94928.0,94915.0,0.0879]
[1745931034771,0.0526543,94926.0,94915.0,0.0611]
[1745931035069,0.2106388,94916.0,94915.0,0.02]
[1745931035374,0.210641,94915.0,94908.0,0.00158038]
[1745931035569,0.306641,94915.0,94914.0,0.224368]
[1745931036573,0.306641,94915.0,94914.0,0.01]
[1745931038080,0.307641,94915.0,94914.0,0.01]
[1745931039067,0.308641,94915.0,94914.0,0.01]
[1745931039262,0.2106433,94914.0,94913.0,0.00808082]
[1745931039469,0.2106455,94913.0,94912.0,0.2106472]
[1745931039971,0.2725455,94913.0,94912.0,0.2106472]
[1745931040271,0.2725455,94913.0,94912.0,0.12776]
[1745931040774,0.2735455,94913.0,94912.0,0.12776]
[1745931042569,0.2745455,94913.0,94912.0,0.12776]
[1745931043576,0.2745455,94913.0,94912.0,0.3384077]
[1745931044578,0.0329,94913.0,94912.0,0.3705077]